[Event "SixDays Budapest January-IMB 2023"]
[Site "Budapest"]
[Date "2023.01.28"]
[Round "9.5"]
[White "Jakab, Attila"]
[Black "Farkas, Gabor"]
[Result "0-1"]
[ECO "E70"]
[WhiteElo "2308"]
[BlackElo "2321"]
[Annotator "TA"]
[PlyCount "68"]
[EventDate "2023.01.23"]
[EventType "tourn"]
[EventCountry "HUN"]
[SourceTitle "playchess.com"]
[Source "ChessBase"]
[SourceQuality "1"]
[TimeControl "5400+30"]

{[%evp 17,68,27,38,26,25,24,23,16,13,20,26,12,12,-120,-124,-131,-147,-147,-139,-139,-139,-143,-122,-116,-125,-184,-120,-210,-210,-211,-213,-208,-217,-352,-357,-332,-320,-427,-430,-588,-582,-514,-502,-973,-880,-961,-962,-949,-946,-934,-894,-927,-900]} 1. d4 {[%emt 0:17:22]} Nf6 {[%emt 0:00:05]} 2. c4 {[%emt 0:00:03]} g6 {[%emt 0:00:04]} 3. Nc3 {[%emt 0:00:02]} Bg7 {[%emt 0:00:05]} 4. e4 {[%emt 0:00:03]} d6 {[%emt 0:00:04]} 5. Nge2 {[%emt 0:00:04]} O-O {[%emt 0:00:13]} 6. Ng3 {[%emt 0:00:02]} e5 {[%emt 0:00:19]} 7. d5 {[%emt 0:00:03]} a5 {[%emt 0:00:16]} 8. Be2 {[%emt 0:00:06]} Na6 {[%emt 0:00:28]} 9. h4 {[%emt 0:00:09]} h5 $1 {[%emt 0:00:05]} 10. Bg5 {[%emt 0:00:07][%cal Re2h5] E70: King's Indian: Miscellaneous lines with 4 e4, including 5 Nge2 and 5 Bd3 0-0 6 Nge2.} Qe8 {[%emt 0:00:25]} 11. Qd2 {[%emt 0:00:08]} Nc5 {[%emt 0:00:06]} 12. Bh6 {[%emt 0:00:40] White has an edge.} Bxh6 {[%emt 0:01:06]} 13. Qxh6 {[%emt 0:00:06][%cal Og3f5]} Qe7 {[%emt 0:00:07]} 14. O-O-O {[%emt 0:03:05]} a4 {[%emt 0:01:18] [#]} 15. Bxh5 $146 {[%emt 0:19:35]} ({Predecessor:} 15. Qg5 Re8 16. Rhf1 Nh7 17. Qxe7 Rxe7 18. f3 Bd7 19. Rd2 Kg7 20. Kc2 Kh6 21. Rb1 {½-½ Pazos Gambarrotti,P (2083)-Mora Munoz,A (1931) Jamundi Fortalece Sede op 2022 (10)}) 15... Nxh5 $17 {[%emt 0:03:46]} (15... gxh5 16. Qg5+ Kh8 17. Nxh5 $14) 16. Nxh5 {[%emt 0:00:08]} gxh5 {[%emt 0:00:07]} 17. Rh3 {[%emt 0:00:06]} Bg4 {[%emt 0:03:35] ...f5 is the strong threat.} (17... Bxh3 $2 18. gxh3 $18) 18. f3 {[%emt 0:00:05] [#] Against f5} Nd3+ $1 {[%emt 0:01:00][%mdl 512]} 19. Rxd3 {[%emt 0:01:52]} Bxh3 {[%emt 0:00:08]} 20. gxh3 {[%emt 0:00:11] White threatens Rd1 and mate.} f5 {[%emt 0:07:23][%cal Bf7f5,Bf5f4,Bf4f3][%mdl 32]} ({Of course not} 20... Qxh4 $6 21. Ne2 f6 22. Qg6+ Kh8 23. Qh6+ Kg8 24. Qg6+ Kh8 25. Qh6+ Kg8 $11) 21. f4 {[%emt 0:06:28] [#]} (21. exf5 $17 Qf6 22. Qxh5 Qxf5 23. Qg5+ Qxg5+ 24. hxg5) 21... Qg7 {[%emt 0:08:27]} (21... Qxh4 22. Qg6+ Kh8 23. Rg3 $11 (23. exf5 $2 {perishes.} Qxf4+ 24. Kb1 Qxf5 $19)) (21... exf4 $1 $19 {aiming for ...Qg7.} 22. exf5 Qh7 23. Qg5+ Kh8 24. Qxf4 Qxf5 25. Qd4+ Qf6) 22. Qxg7+ {[%emt 0:01:42]} (22. Qxh5 $17 {only move.} fxe4 23. Nxe4 exf4 24. Ng5) 22... Kxg7 $19 {[%emt 0:00:05]} 23. fxe5 {[%emt 0:00:06]} dxe5 $17 {[%emt 0:00:18][%mdl 4096] Endgame KRR-KRN} 24. Rg3+ {[%emt 0:00:27] [#]} Kh6 $1 {[%emt 0:01:45]} 25. Rg5 {[%emt 0:01:24]} (25. exf5 $142 Rxf5 26. Ne2) 25... f4 $19 {[%emt 0:01:12]} 26. Kd2 {[%emt 0:00:28]} f3 {[%emt 0:02:10] White must now prevent ...f2.} 27. Ke1 {[%emt 0:00:05]} a3 {[%emt 0:00:35] Black is clearly winning.} 28. b4 {[%emt 0:01:18]} f2+ {[%emt 0:00:41]} 29. Kf1 {[%emt 0:00:03]} Rf3 {[%emt 0:00:25][%csl LRc3,LRh3] Against Rg3} 30. Nd1 {[%emt 0:01:40]} (30. Nb5 $142 Ra4 31. Rf5 Rxf5 32. exf5 Rxb4 33. Nxa3) 30... Ra4 {[%emt 0:00:20]} 31. Nxf2 {[%emt 0:00:31]} Rxb4 {[%emt 0:00:10] ( -> ...Rb2)} 32. Ke2 {[%emt 0:00:54]} Rc3 {[%emt 0:01:18] Hoping for ...Rb2+.} 33. Kd2 {[%emt 0:00:34]} Rbxc4 {[%emt 0:06:10] ...Rc2+ would be deadly.} 34. Nd1 {[%emt 0:03:22]} Rxh3 {[%emt 0:01:53] Black took control after the opening.   Weighted Error Value: White=0.65/Black=0.05 (flawless)} 0-1